[Event "4NCL 2019-20"]
[Site "Daventry"]
[Date "2020.01.11"]
[Round "3"]
[White "Sucikova, Svetlana"]
[Black "Latham, David"]
[Result "1/2-1/2"]
[ECO "E65"]
[WhiteElo "2160"]
[BlackElo "2064"]
[Annotator "ChessBase"]
[PlyCount "116"]
[EventDate "2020.01.11"]
[EventCountry "ENG"]
[SourceTitle "playchess.com"]
[Source "ChessBase"]
[SourceQuality "1"]
[TimeControl "40/6000:3000+30"]

1. c4 {[%emt 0:00:25]} Nf6 {[%emt 0:00:00]} 2. g3 {[%emt 0:00:00]} g6 {[%emt 0:00:34]} 3. Bg2 {[%emt 0:00:00]} Bg7 {[%emt 0:00:00]} 4. Nc3 {[%emt 0:00:00]} c5 {[%emt 0:02:22]} 5. Nf3 {[%emt 0:00:20]} O-O {[%emt 0:01:51]} 6. d4 {[%emt 0:00:00]} cxd4 {[%emt 0:01:26]} 7. Nxd4 {[%emt 0:00:00]} a6 {[%emt 0:00:00]} 8. O-O {[%emt 0:05:01]} Qc7 {[%emt 0:00:16]} 9. b3 {[%emt 0:00:50]} Nc6 {[%emt 0:01:24]} 10. Bb2 {[%emt 0:01:19]} d6 {[%emt 0:04:48]} 11. Rc1 {[%emt 0:00:42]} Nd7 {[%emt 0:08:13]} 12. Nd5 {[%emt 0:04:01]} Qd8 {[%emt 0:00:58]} 13. Nxc6 {[%emt 0:00:00]} bxc6 {[%emt 0:00:00]} 14. Bxg7 {[%emt 0:00:00]} Kxg7 {[%emt 0:00:00]} 15. Nb4 {[%emt 0:00:00]} Ne5 {[%emt 0:01:06]} 16. Nxc6 {[%emt 0:00:14]} Nxc6 {[%emt 0:00:00]} 17. Bxc6 {[%emt 0:00:00]} Bh3 {[%emt 0:00:00]} 18. Bg2 {[%emt 0:02:14]} Bxg2 {[%emt 0:00:00]} 19. Kxg2 {[%emt 0:00:00]} Qa5 {[%emt 0:00:00]} 20. Rc2 {[%emt 0:00:00]} Rfc8 {[%emt 0:00:00]} 21. Qd4+ {[%emt 0:00:46]} f6 {[%emt 0:00:00]} 22. Rd1 {[%emt 0:00:12]} Rc5 {[%emt 0:01:55]} 23. Qe4 {[%emt 0:06:29]} Ra7 {[%emt 0:00:00]} 24. Rd5 {[%emt 0:00:56]} Rac7 {[%emt 0:01:13]} 25. Rxc5 {[%emt 0:05:30]} dxc5 {[%emt 0:01:56]} 26. Qe6 {[%emt 0:01:51]} Rb7 {[%emt 0:01:58]} 27. h4 {[%emt 0:01:41]} h5 {[%emt 0:00:53]} 28. Qd5 {[%emt 0:03:15]} Qc7 {[%emt 0:05:49]} 29. Rc3 {[%emt 0:05:34]} a5 {[%emt 0:01:52]} 30. a4 {[%emt 0:01:41]} Rb6 {[%emt 0:02:40]} 31. Re3 {[%emt 0:01:21]} Rd6 {[%emt 0:01:12]} 32. Qe4 {[%emt 0:00:29]} e5 {[%emt 0:00:21]} 33. Kh2 {[%emt 0:01:37]} Rd4 {[%emt 0:09:06]} 34. Qa8 {[%emt 0:00:00]} Rd8 {[%emt 0:04:25]} 35. Qa6 {[%emt 0:01:39]} Rd6 {[%emt 0:00:31]} 36. Qb5 {[%emt 0:00:22]} Kf7 {[%emt 0:00:37]} 37. Kg2 {[%emt 0:10:33]} Rd8 {[%emt 0:03:56]} 38. Qa6 {[%emt 0:03:04]} f5 {[%emt 0:07:44]} 39. Rf3 {[%emt 0:10:04]} e4 {[%emt 0:02:40]} 40. Re3 {[%emt 0:00:43]} Rd6 {[%emt 0:00:59]} 41. Qb5 {[%emt 0:50:14]} Rd1 {[%emt 0:50:58]} 42. f3 {[%emt 0:08:51]} exf3+ {[%emt 0:05:27]} 43. exf3 {[%emt 0:04:48]} Qd8 {[%emt 0:11:41]} 44. Qb7+ {[%emt 0:07:41]} Kf8 {[%emt 0:06:46]} 45. Re2 {[%emt 0:00:00]} Rd2 {[%emt 0:00:00]} 46. Kf1 {[%emt 0:00:00]} Rd1+ {[%emt 0:00:00]} 47. Kg2 {[%emt 0:00:00]} Rd2 {[%emt 0:00:00]} 48. Rxd2 {[%emt 0:00:00]} Qxd2+ {[%emt 0:00:00]} 49. Kh3 {[%emt 0:00:00]} Qf2 {[%emt 0:00:00]} 50. Qc8+ {[%emt 0:00:00]} Kf7 {[%emt 0:00:00]} 51. Qd7+ {[%emt 0:00:00]} Kf6 {[%emt 0:00:00]} 52. Qd1 {[%emt 0:00:00]} Kf7 {[%emt 0:00:00]} 53. Qd5+ {[%emt 0:00:00]} Kf6 {[%emt 0:00:00]} 54. f4 {[%emt 0:00:00]} Qf1+ {[%emt 0:00:00]} 55. Kh2 {[%emt 0:00:00]} Qf2+ {[%emt 0:00:00]} 56. Qg2 {[%emt 0:00:00]} Qxg2+ {[%emt 0:00:00]} 57. Kxg2 {[%emt 0:00:00]} Ke6 {[%emt 0:00:00]} 58. Kf3 {[%emt 0:00:00]} Kd6 {[%emt 0:00:00]} 1/2-1/2

[Event "4NCL 2019-20"]
[Site "Daventry"]
[Date "2020.01.11"]
[Round "3"]
[White "Stewart, Ashley"]
[Black "Pert, Nicholas"]
[Result "0-1"]
[ECO "A11"]
[WhiteElo "2152"]
[BlackElo "2558"]
[Annotator "ChessBase"]
[PlyCount "78"]
[EventDate "2020.01.11"]
[EventCountry "ENG"]
[SourceTitle "playchess.com"]
[Source "ChessBase"]
[SourceQuality "1"]
[TimeControl "40/6000:3000+30"]

1. c4 {[%emt 0:00:00]} Nf6 {[%emt 0:00:50]} 2. g3 {[%emt 0:00:00]} c6 {[%emt 0:00:00]} 3. Bg2 {[%emt 0:00:00]} d5 {[%emt 0:00:00]} 4. Nf3 {[%emt 0:00:00]} dxc4 {[%emt 0:00:00]} 5. O-O {[%emt 0:00:00]} Nbd7 {[%emt 0:00:00]} 6. Na3 {[%emt 0:00:00]} Nb6 {[%emt 0:00:00]} 7. Ne5 {[%emt 0:00:00]} Be6 {[%emt 0:00:00]} 8. Qc2 {[%emt 0:00:46]} Qd4 {[%emt 0:03:43]} 9. Nxc6 {[%emt 0:00:31]} bxc6 {[%emt 0:00:00]} 10. Bxc6+ {[%emt 0:00:00]} Nfd7 {[%emt 0:00:00]} 11. Bxa8 {[%emt 0:04:18]} Nxa8 {[%emt 0:00:00]} 12. d3 {[%emt 0:02:19]} Bh3 {[%emt 0:00:07]} 13. Rd1 {[%emt 0:05:50]} Qd5 {[%emt 0:03:45]} 14. f3 {[%emt 0:03:35]} Qd4+ {[%emt 0:00:45]} 15. e3 {[%emt 0:00:00]} Qf6 {[%emt 0:01:51]} 16. Qxc4 {[%emt 0:11:14]} Nab6 {[%emt 0:00:37]} 17. Qf4 {[%emt 0:03:40]} Qxf4 {[%emt 0:00:38]} 18. gxf4 {[%emt 0:00:27]} e5 {[%emt 0:00:00]} 19. fxe5 {[%emt 0:04:32]} Nxe5 {[%emt 0:00:00]} 20. Kf2 {[%emt 0:02:58]} h5 {[%emt 0:02:06]} 21. f4 {[%emt 0:16:13]} Bg4 {[%emt 0:07:11]} 22. Rd2 {[%emt 0:00:13]} Nf3 {[%emt 0:02:05]} 23. Rc2 {[%emt 0:04:36]} Be7 {[%emt 0:02:22]} 24. Bd2 {[%emt 0:02:15]} Nxh2 {[%emt 0:07:41]} 25. Rc7 {[%emt 0:08:45]} Nf3 {[%emt 0:05:44]} 26. Ba5 {[%emt 0:02:28]} Bh4+ {[%emt 0:09:07]} 27. Kg2 {[%emt 0:00:22]} Nd5 {[%emt 0:02:06]} 28. Rxa7 {[%emt 0:01:07]} Nxe3+ {[%emt 0:00:09]} 29. Kh1 {[%emt 0:00:00]} Bh3 {[%emt 0:03:00]} 30. Rg1 {[%emt 0:04:12]} Nxg1 {[%emt 0:01:47]} 31. Kxg1 {[%emt 0:00:04]} O-O {[%emt 0:07:46]} 32. Nc4 {[%emt 0:06:54]} Ng4 {[%emt 0:01:39]} 33. Rb7 {[%emt 0:01:33]} Re8 {[%emt 0:01:00]} 34. Ne5 {[%emt 0:00:24]} Bf2+ {[%emt 0:03:42]} 35. Kh1 {[%emt 0:00:00]} Nxe5 {[%emt 0:00:00]} 36. fxe5 {[%emt 0:00:00]} Rxe5 {[%emt 0:00:00]} 37. Bc3 {[%emt 0:00:40]} Rg5 {[%emt 0:00:29]} 38. Kh2 {[%emt 0:00:32]} Be6 {[%emt 0:00:00]} 39. a4 {[%emt 0:00:06]} Bg1+ {[%emt 0:00:00]} 0-1

[Event "4NCL 2019-20"]
[Site "Daventry"]
[Date "2020.01.11"]
[Round "3"]
[White "Eames, Robert S"]
[Black "Atalik, Ekaterina"]
[Result "0-1"]
[ECO "B12"]
[WhiteElo "2150"]
[BlackElo "2450"]
[Annotator "ChessBase"]
[PlyCount "88"]
[EventDate "2020.01.11"]
[EventCountry "ENG"]
[SourceTitle "playchess.com"]
[Source "ChessBase"]
[SourceQuality "1"]
[TimeControl "40/6000:3000+30"]

1. e4 {[%emt 0:00:06]} c6 {[%emt 0:00:00]} 2. d4 {[%emt 0:00:00]} d5 {[%emt 0:00:00]} 3. e5 {[%emt 0:00:00]} Bf5 {[%emt 0:00:00]} 4. h4 {[%emt 0:00:00]} h6 {[%emt 0:00:00]} 5. g4 {[%emt 0:00:00]} Bd7 {[%emt 0:00:00]} 6. h5 {[%emt 0:00:25]} e6 {[%emt 0:00:00]} 7. f4 {[%emt 0:01:19]} c5 {[%emt 0:00:08]} 8. c3 {[%emt 0:00:03]} Qb6 {[%emt 0:03:32]} 9. Nf3 {[%emt 0:00:18]} Bb5 {[%emt 0:03:11]} 10. Bxb5+ {[%emt 0:03:36]} Qxb5 {[%emt 0:00:00]} 11. Na3 {[%emt 0:03:03]} Qa6 {[%emt 0:01:28]} 12. Nc2 {[%emt 0:00:28]} Nd7 {[%emt 0:00:21]} 13. Kf2 {[%emt 0:04:32]} Ne7 {[%emt 0:00:38]} 14. Be3 {[%emt 0:02:27]} Nc6 {[%emt 0:01:09]} 15. f5 {[%emt 0:04:17]} Be7 {[%emt 0:02:55]} 16. Qd2 {[%emt 0:05:49]} O-O-O {[%emt 0:02:31]} 17. b4 {[%emt 0:02:10]} cxb4 {[%emt 0:02:15]} 18. cxb4 {[%emt 0:02:02]} Qa4 {[%emt 0:05:45]} 19. Rhb1 {[%emt 0:05:58]} Nb6 {[%emt 0:01:25]} 20. Bf4 {[%emt 0:04:31]} a6 {[%emt 0:10:45]} 21. Qc3 {[%emt 0:05:19]} Kb8 {[%emt 0:05:56]} 22. f6 {[%emt 0:01:52]} Rc8 {[%emt 0:04:22]} 23. fxg7 {[%emt 0:11:22]} Rhg8 {[%emt 0:02:15]} 24. Qb3 {[%emt 0:02:03]} Rxg7 {[%emt 0:05:44]} 25. Ne3 {[%emt 0:00:35]} Qxb3 {[%emt 0:07:30]} 26. Rxb3 {[%emt 0:00:23]} Rh7 {[%emt 0:07:15]} 27. b5 {[%emt 0:07:43]} Na5 {[%emt 0:00:04]} 28. Rbb1 {[%emt 0:00:00]} Ka7 {[%emt 0:00:02]} 29. bxa6 {[%emt 0:00:26]} bxa6 {[%emt 0:00:00]} 30. Rc1 {[%emt 0:00:16]} Nac4 {[%emt 0:00:50]} 31. Nxc4 {[%emt 0:00:12]} dxc4 {[%emt 0:00:33]} 32. Rc2 {[%emt 0:05:54]} Nd5 {[%emt 0:00:24]} 33. Kg3 {[%emt 0:02:49]} c3 {[%emt 0:00:37]} 34. a3 {[%emt 0:02:07]} Rc4 {[%emt 0:00:29]} 35. Bc1 {[%emt 0:02:11]} Bd8 {[%emt 0:01:58]} 36. Rh2 {[%emt 0:00:42]} Rh8 {[%emt 0:04:20]} 37. Raa2 {[%emt 0:04:03]} Bb6 {[%emt 0:00:49]} 38. Raf2 {[%emt 0:00:00]} Bxd4 {[%emt 0:02:24]} 39. Nxd4 {[%emt 0:01:24]} Rxd4 {[%emt 0:00:00]} 40. Rxf7+ {[%emt 0:00:00]} Kb6 {[%emt 0:00:00]} 41. g5 {[%emt 0:59:09]} Rd1 {[%emt 0:52:05]} 42. Rc2 {[%emt 0:00:00]} hxg5 {[%emt 0:00:00]} 43. Rd7 {[%emt 0:00:00]} Kc5 {[%emt 0:00:00]} 44. Rd6 {[%emt 0:00:00]} Kc4 {[%emt 0:00:00]} 0-1

[Event "4NCL 2019-20"]
[Site "Daventry"]
[Date "2020.01.11"]
[Round "3"]
[White "Bremner, Adam"]
[Black "Makepeace, Philip J"]
[Result "1-0"]
[ECO "B38"]
[WhiteElo "2148"]
[BlackElo "2076"]
[Annotator "NA"]
[PlyCount "87"]
[EventDate "2020.01.11"]
[EventCountry "ENG"]
[SourceTitle "playchess.com"]
[Source "ChessBase"]
[SourceQuality "1"]
[TimeControl "40/6000:3000+30"]

1. c4 {[%emt 0:00:00]} c5 {[%emt 0:00:00]} 2. Nf3 {[%emt 0:00:00]} Nf6 {[%emt 0:00:00]} 3. d4 {[%emt 0:00:00]} cxd4 {[%emt 0:00:00]} 4. Nxd4 {[%emt 0:00:00]} g6 {[%emt 0:01:25]} 5. Nc3 {[%emt 0:00:44]} Bg7 {[%emt 0:00:00]} 6. e4 {[%emt 0:00:00]} d6 {[%emt 0:00:00]} 7. Be2 {[%emt 0:00:01]} Nc6 {[%emt 0:00:00]} 8. Be3 {[%emt 0:00:01]} Bd7 {[%emt 0:00:26]} 9. O-O {[%emt 0:02:33]} O-O {[%emt 0:00:08]} 10. Rc1 {[%emt 0:00:07]} Nxd4 {[%emt 0:07:58]} 11. Bxd4 {[%emt 0:00:42]} Bc6 {[%emt 0:00:00]} 12. Bf3 {[%emt 0:05:35]} Qa5 {[%emt 0:14:55]} 13. Qd2 {[%emt 0:01:41]} Nd7 {[%emt 0:05:52]} 14. Rfd1 {[%emt 0:00:37]} Bxd4 {[%emt 0:06:33]} 15. Qxd4 {[%emt 0:00:53]} Qg5 {[%emt 0:02:39]} 16. b4 {[%emt 0:08:19]} Ne5 {[%emt 0:13:15]} 17. Be2 {[%emt 0:00:10]} Rfc8 {[%emt 0:03:27]} 18. g3 {[%emt 0:00:34]} Ng4 {[%emt 0:05:36]} 19. h4 {[%emt 0:03:26]} Qh5 {[%emt 0:00:00]} 20. e5 {[%emt 0:01:16]} Bd7 {[%emt 0:00:34]} 21. Nd5 {[%emt 0:01:07]} Re8 {[%emt 0:02:21]} 22. e6 {[%emt 0:00:28]} Bxe6 {[%emt 0:00:43]} 23. Nf4 {[%emt 0:00:00]} Qf5 {[%emt 0:01:30]} 24. Nxe6 {[%emt 0:00:00]} Qxf2+ {[%emt 0:00:00]} 25. Qxf2 {[%emt 0:00:00]} Nxf2 {[%emt 0:00:00]} 26. Kxf2 {[%emt 0:00:04]} fxe6 {[%emt 0:00:00]} 27. Bf3 {[%emt 0:00:13]} Rf8 {[%emt 0:00:00]} 28. Kg2 {[%emt 0:00:00]} Rf6 {[%emt 0:00:00]} 29. Rf1 {[%emt 0:02:32]} Rb8 {[%emt 0:00:00]} 30. c5 {[%emt 0:00:32]} d5 {[%emt 0:00:01]} 31. Rce1 {[%emt 0:00:00]} Kf7 {[%emt 0:00:00]} 32. Bg4 {[%emt 0:00:00]} Rd8 {[%emt 0:00:16]} 33. Rxf6+ {[%emt 0:00:10]} Kxf6 {[%emt 0:00:00]} 34. Rxe6+ {[%emt 0:00:18]} Kf7 {[%emt 0:00:00]} 35. Re2 {[%emt 0:04:13]} h5 {[%emt 0:00:48]} 36. Rf2+ {[%emt 0:00:36]} Kg7 {[%emt 0:00:03]} 37. Be6 {[%emt 0:00:00]} d4 {[%emt 0:00:00]} 38. Kf1 {[%emt 0:00:07]} d3 {[%emt 0:00:00]} 39. Ke1 {[%emt 0:01:02]} Rd4 {[%emt 0:00:00]} 40. Rf4 {[%emt 0:00:32]} d2+ {[%emt 0:00:00]} 41. Kd1 {[%emt 0:50:04]} Rd3 {[%emt 0:49:06]} 42. Rf7+ {[%emt 0:00:22]} Kh8 {[%emt 0:00:09]} 43. Rxe7 {[%emt 0:00:06]} Rxg3 {[%emt 0:00:10]} 44. Rxb7 {[%emt 0:00:26]} 1-0

[Event "4NCL 2019-20"]
[Site "Daventry"]
[Date "2020.01.11"]
[Round "3"]
[White "Dicu, Dan-Alexandru"]
[Black "Bhatia, Kanwal K"]
[Result "1-0"]
[ECO "C56"]
[WhiteElo "2106"]
[BlackElo "2037"]
[Annotator "ChessBase"]
[PlyCount "63"]
[EventDate "2020.01.11"]
[EventCountry "ENG"]
[SourceTitle "playchess.com"]
[Source "ChessBase"]
[SourceQuality "1"]
[TimeControl "40/6000:3000+30"]

1. e4 {[%emt 0:48:54]} e5 {[%emt 0:00:05]} 2. Nf3 {[%emt 0:00:15]} Nc6 {[%emt 0:00:06]} 3. d4 {[%emt 0:00:10]} exd4 {[%emt 0:00:07]} 4. Bc4 {[%emt 0:00:05]} Nf6 {[%emt 0:00:31]} 5. e5 {[%emt 0:00:07]} d5 {[%emt 0:00:08]} 6. Bb5 {[%emt 0:00:07]} Ne4 {[%emt 0:00:16]} 7. Nxd4 {[%emt 0:00:07]} Bd7 {[%emt 0:00:44]} 8. Bxc6 {[%emt 0:00:08]} bxc6 {[%emt 0:00:05]} 9. O-O {[%emt 0:00:09]} Be7 {[%emt 0:02:04]} 10. f3 {[%emt 0:01:41]} Ng5 {[%emt 0:01:57]} 11. f4 {[%emt 0:00:08]} Ne4 {[%emt 0:00:10]} 12. c3 {[%emt 0:01:52]} c5 {[%emt 0:02:21]} 13. Ne2 {[%emt 0:02:40]} Bb5 {[%emt 0:11:10]} 14. Na3 {[%emt 0:03:17]} Bc6 {[%emt 0:06:21]} 15. f5 {[%emt 0:09:49]} Qd7 {[%emt 0:02:03]} 16. Nc2 {[%emt 0:03:57]} O-O-O {[%emt 0:05:17]} 17. b4 {[%emt 0:01:11]} Rhe8 {[%emt 0:08:13]} 18. Be3 {[%emt 0:01:31]} Bf8 {[%emt 0:02:52]} 19. bxc5 {[%emt 0:03:20]} Rxe5 {[%emt 0:01:11]} 20. Rb1 {[%emt 0:11:58]} d4 {[%emt 0:14:19]} 21. cxd4 {[%emt 0:06:11]} Rxf5 {[%emt 0:00:28]} 22. Nb4 {[%emt 0:02:21]} Rxf1+ {[%emt 0:15:19]} 23. Qxf1 {[%emt 0:00:36]} Bb5 {[%emt 0:00:45]} 24. a4 {[%emt 0:06:30]} Bc4 {[%emt 0:03:28]} 25. Qf3 {[%emt 0:06:47]} Re8 {[%emt 0:06:33]} 26. Nc3 {[%emt 0:02:31]} f5 {[%emt 0:00:46]} 27. Nb5 {[%emt 0:03:01]} c6 {[%emt 0:08:11]} 28. Nxc6 {[%emt 0:00:52]} Bxb5 {[%emt 0:01:59]} 29. axb5 {[%emt 0:00:46]} Nc3 {[%emt 0:01:44]} 30. Ra1 {[%emt 0:06:53]} Nxb5 {[%emt 0:10:38]} 31. Nxa7+ {[%emt 0:00:14]} Kb8 {[%emt 0:00:32]} 32. Nxb5 {[%emt 0:00:25]} 1-0

[Event "4NCL 2019-20"]
[Site "Daventry"]
[Date "2020.01.11"]
[Round "3"]
[White "Lucchi, Lorenzo"]
[Black "Purton, Ben J"]
[Result "0-1"]
[ECO "B70"]
[WhiteElo "2096"]
[BlackElo "2138"]
[Annotator "ChessBase"]
[PlyCount "58"]
[EventDate "2020.01.11"]
[EventCountry "ENG"]
[SourceTitle "playchess.com"]
[Source "ChessBase"]
[SourceQuality "1"]
[TimeControl "40/6000:3000+30"]

1. e4 {[%emt 0:00:00]} c5 {[%emt 0:00:00]} 2. Nf3 {[%emt 0:00:00]} d6 {[%emt 0:00:00]} 3. g3 {[%emt 0:00:00]} Nc6 {[%emt 0:00:00]} 4. Bg2 {[%emt 0:00:00]} Nf6 {[%emt 0:00:00]} 5. Nc3 {[%emt 0:00:00]} g6 {[%emt 0:00:00]} 6. d4 {[%emt 0:00:00]} cxd4 {[%emt 0:00:00]} 7. Nxd4 {[%emt 0:00:00]} Bd7 {[%emt 0:00:00]} 8. O-O {[%emt 0:06:22]} Bg7 {[%emt 0:00:00]} 9. Re1 {[%emt 0:01:33]} Nxd4 {[%emt 0:11:05]} 10. Qxd4 {[%emt 0:00:01]} O-O {[%emt 0:00:00]} 11. Qb4 {[%emt 0:15:58]} a5 {[%emt 0:01:05]} 12. Qxb7 {[%emt 0:11:11]} Rb8 {[%emt 0:00:00]} 13. Qa6 {[%emt 0:03:48]} Qc7 {[%emt 0:01:22]} 14. Qd3 {[%emt 0:14:03]} Rfc8 {[%emt 0:00:09]} 15. Rb1 {[%emt 0:04:19]} Ng4 {[%emt 0:03:17]} 16. Bd2 {[%emt 0:05:01]} Ne5 {[%emt 0:00:00]} 17. Qe2 {[%emt 0:01:02]} Nc4 {[%emt 0:00:00]} 18. Nd5 {[%emt 0:10:36]} Qd8 {[%emt 0:00:00]} 19. Bc3 {[%emt 0:04:45]} e6 {[%emt 0:02:53]} 20. Bxg7 {[%emt 0:02:46]} Kxg7 {[%emt 0:00:00]} 21. Ne3 {[%emt 0:01:24]} Nxb2 {[%emt 0:00:00]} 22. Qd2 {[%emt 0:01:56]} Be8 {[%emt 0:01:11]} 23. Ng4 {[%emt 0:03:27]} e5 {[%emt 0:06:51]} 24. Ne3 {[%emt 0:04:48]} Rc5 {[%emt 0:01:31]} 25. c3 {[%emt 0:01:59]} Nc4 {[%emt 0:01:06]} 26. Nxc4 {[%emt 0:00:09]} Rxc4 {[%emt 0:00:00]} 27. Bf1 {[%emt 0:00:17]} Rxb1 {[%emt 0:00:14]} 28. Bxc4 {[%emt 0:00:00]} Qb6 {[%emt 0:00:29]} 29. Rxb1 {[%emt 0:00:56]} Qxb1+ {[%emt 0:00:00]} 0-1

[Event "4NCL 2019-20"]
[Site "Daventry"]
[Date "2020.01.11"]
[Round "3"]
[White "Hodgson, John H"]
[Black "Head, Louise"]
[Result "1/2-1/2"]
[ECO "B17"]
[WhiteElo "2082"]
[BlackElo "2100"]
[Annotator "ChessBase"]
[PlyCount "53"]
[EventDate "2020.01.11"]
[EventCountry "ENG"]
[SourceTitle "playchess.com"]
[Source "ChessBase"]
[SourceQuality "1"]
[TimeControl "40/6000:3000+30"]

1. e4 {[%emt 0:00:00]} c6 {[%emt 0:00:00]} 2. d4 {[%emt 0:00:00]} d5 {[%emt 0:00:00]} 3. Nd2 {[%emt 0:00:00]} dxe4 {[%emt 0:00:00]} 4. Nxe4 {[%emt 0:00:00]} Nd7 {[%emt 0:00:00]} 5. Ng5 {[%emt 0:00:00]} Ngf6 {[%emt 0:00:00]} 6. Bd3 {[%emt 0:00:00]} e6 {[%emt 0:00:00]} 7. N1f3 {[%emt 0:00:00]} Bd6 {[%emt 0:00:00]} 8. Qe2 {[%emt 0:00:00]} h6 {[%emt 0:00:00]} 9. Ne4 {[%emt 0:00:00]} Nxe4 {[%emt 0:00:00]} 10. Qxe4 {[%emt 0:00:00]} Qc7 {[%emt 0:00:00]} 11. O-O {[%emt 0:00:00]} b6 {[%emt 0:00:00]} 12. Qg4 {[%emt 0:00:00]} Kf8 {[%emt 0:00:00]} 13. b3 {[%emt 0:00:00]} Bb7 {[%emt 0:00:00]} 14. Re1 {[%emt 0:00:00]} Nf6 {[%emt 0:13:26]} 15. Qh3 {[%emt 0:00:00]} Bb4 {[%emt 0:26:04]} 16. Rd1 {[%emt 0:00:00]} Bc3 {[%emt 0:13:22]} 17. Rb1 {[%emt 0:00:00]} c5 {[%emt 0:05:32]} 18. dxc5 {[%emt 0:02:32]} bxc5 {[%emt 0:07:04]} 19. Bd2 {[%emt 0:25:27]} Nd5 {[%emt 0:01:57]} 20. Be4 {[%emt 0:06:07]} Bf6 {[%emt 0:02:12]} 21. c4 {[%emt 0:06:19]} Nc3 {[%emt 0:07:09]} 22. Bxb7 {[%emt 0:00:00]} Qxb7 {[%emt 0:00:00]} 23. Bxc3 {[%emt 0:00:00]} Bxc3 {[%emt 0:00:00]} 24. Rd3 {[%emt 0:00:00]} Bf6 {[%emt 0:00:52]} 25. Rbd1 {[%emt 0:00:32]} Ke7 {[%emt 0:00:53]} 26. Qg3 {[%emt 0:03:01]} Rhc8 {[%emt 0:03:41]} 27. Qf4 {[%emt 0:12:12]} 1/2-1/2

[Event "4NCL 2019-20"]
[Site "Daventry"]
[Date "2020.01.11"]
[Round "3"]
[White "Jackson, Sheila"]
[Black "Townsend, M Paul"]
[Result "1-0"]
[ECO "B06"]
[WhiteElo "2064"]
[BlackElo "2217"]
[Annotator "ChessBase"]
[PlyCount "99"]
[EventDate "2020.01.11"]
[EventCountry "ENG"]
[SourceTitle "playchess.com"]
[Source "ChessBase"]
[SourceQuality "1"]
[TimeControl "40/6000:3000+30"]

1. e4 {[%emt 0:00:00]} g6 {[%emt 0:00:00]} 2. d4 {[%emt 0:00:00]} Bg7 {[%emt 0:00:00]} 3. Nc3 {[%emt 0:00:00]} d6 {[%emt 0:00:00]} 4. Bg5 {[%emt 0:00:00]} a6 {[%emt 0:00:00]} 5. f4 {[%emt 0:00:00]} b5 {[%emt 0:00:00]} 6. Nf3 {[%emt 0:00:00]} Bb7 {[%emt 0:00:00]} 7. Bd3 {[%emt 0:03:22]} Nd7 {[%emt 0:01:30]} 8. e5 {[%emt 0:06:10]} f6 {[%emt 0:08:22]} 9. exf6 {[%emt 0:05:12]} exf6 {[%emt 0:02:50]} 10. Qe2+ {[%emt 0:01:50]} Qe7 {[%emt 0:09:22]} 11. Qxe7+ {[%emt 0:02:22]} Nxe7 {[%emt 0:00:00]} 12. Bh4 {[%emt 0:00:00]} O-O {[%emt 0:16:32]} 13. O-O {[%emt 0:00:09]} Rfe8 {[%emt 0:03:10]} 14. Rae1 {[%emt 0:00:26]} Nb6 {[%emt 0:04:41]} 15. Be4 {[%emt 0:14:28]} Bxe4 {[%emt 0:05:34]} 16. Nxe4 {[%emt 0:00:51]} Nbd5 {[%emt 0:00:45]} 17. c3 {[%emt 0:04:23]} Nf5 {[%emt 0:01:25]} 18. Bf2 {[%emt 0:11:01]} Nxf4 {[%emt 0:01:45]} 19. Ng3 {[%emt 0:01:59]} Nxg3 {[%emt 0:01:35]} 20. Bxg3 {[%emt 0:00:00]} Ne2+ {[%emt 0:00:47]} 21. Kf2 {[%emt 0:00:00]} Nxg3 {[%emt 0:00:00]} 22. Kxg3 {[%emt 0:00:00]} Bh6 {[%emt 0:00:07]} 23. d5 {[%emt 0:01:49]} Kf7 {[%emt 0:06:19]} 24. Nd4 {[%emt 0:01:06]} Re5 {[%emt 0:06:43]} 25. Nc6 {[%emt 0:02:57]} Rg5+ {[%emt 0:04:43]} 26. Kh3 {[%emt 0:00:07]} Bf8 {[%emt 0:02:22]} 27. Re6 {[%emt 0:03:50]} f5 {[%emt 0:00:13]} 28. g3 {[%emt 0:06:11]} Rg4 {[%emt 0:05:59]} 29. Kg2 {[%emt 0:01:08]} Rc4 {[%emt 0:03:24]} 30. Re3 {[%emt 0:04:46]} Re8 {[%emt 0:00:57]} 31. Rfe1 {[%emt 0:01:59]} Rxe3 {[%emt 0:02:19]} 32. Rxe3 {[%emt 0:00:00]} Rc5 {[%emt 0:00:05]} 33. Nd8+ {[%emt 0:02:27]} Kg8 {[%emt 0:01:53]} 34. Rd3 {[%emt 0:03:28]} Rc4 {[%emt 0:03:56]} 35. b3 {[%emt 0:02:08]} Re4 {[%emt 0:00:00]} 36. Kf2 {[%emt 0:00:52]} Re7 {[%emt 0:01:33]} 37. Re3 {[%emt 0:03:38]} Re5 {[%emt 0:00:27]} 38. c4 {[%emt 0:00:30]} Bh6 {[%emt 0:00:07]} 39. Rxe5 {[%emt 0:00:00]} dxe5 {[%emt 0:00:00]} 40. Ne6 {[%emt 0:00:00]} bxc4 {[%emt 0:00:00]} 41. bxc4 {[%emt 0:49:43]} Kf7 {[%emt 0:22:04]} 42. Nxc7 {[%emt 0:00:00]} Ke7 {[%emt 0:02:17]} 43. c5 {[%emt 0:00:00]} Kd7 {[%emt 0:08:50]} 44. Nxa6 {[%emt 0:00:00]} Bf8 {[%emt 0:01:09]} 45. a4 {[%emt 0:00:00]} g5 {[%emt 0:03:04]} 46. d6 {[%emt 0:00:00]} e4 {[%emt 0:03:37]} 47. Ke3 {[%emt 0:00:00]} h5 {[%emt 0:04:13]} 48. Nb8+ {[%emt 0:00:00]} Kc8 {[%emt 0:00:58]} 49. Nc6 {[%emt 0:00:00]} g4 {[%emt 0:02:28]} 50. Ne7+ {[%emt 0:00:00]} 1-0